bitfinex/quotes_SOLUSD_20250528
["timestamp","ask_amount","ask_price","bid_price","bid_amount"]
[1748475643628,95.13998389,172.5,172.45,16.66279388]
[1748475643794,78.47719001,172.5,172.46,16.66279388]
[1748475644121,66.96994363,172.5,172.46,16.66279388]
[1748475644339,112.61824475,172.5,172.44,16.66279388]
[1748475644817,95.95545087,172.5,172.46,16.66279388]
[1748475645410,112.61824475,172.5,172.45,16.66279388]
[1748475647704,95.95545087,172.5,172.46,16.66279388]
[1748475650128,75.89824475,172.5,172.45,16.66279388]
[1748475651630,16.66279388,172.49,172.44,16.66279388]
[1748475652220,20.29220778,172.48,172.44,16.66279388]
[1748475652730,20.29220778,172.48,172.41,0.14216157]
[1748475652929,126.45500166,172.48,172.43,16.66279388]
[1748475654028,109.79220778,172.48,172.44,16.66279388]
[1748475654232,126.45500166,172.48,172.43,16.66279388]
[1748475654531,155.44386993,172.48,172.43,16.66279388]
[1748475654734,16.66279388,172.46,172.41,16.66279388]
[1748475655229,126.2,172.47,172.42,16.66279388]
[1748475655433,142.86279388,172.47,172.43,16.66279388]
[1748475656508,20.29456105,172.46,172.42,16.66279388]
[1748475656726,36.95735493,172.46,172.41,16.66279388]
[1748475657036,36.95735493,172.46,172.38,26.0]
[1748475657037,36.95735493,172.46,172.38,0.14216157]
[1748475657203,36.95735493,172.46,172.41,16.66279388]
[1748475658309,20.29456105,172.46,172.39,26.0]
[1748475658536,20.29456105,172.46,172.41,0.14216157]
[1748475658737,20.29456105,172.46,172.42,16.66279388]
[1748475659312,16.66279388,172.45,172.4,16.66279388]
[1748475659710,9.92,172.44,172.4,16.66279388]
[1748475659916,9.92,172.44,172.41,16.66279388]
[1748475660436,20.29809197,172.43,172.39,16.66279388]
[1748475660650,36.96088585,172.43,172.38,16.66279388]
[1748475660949,65.9581601,172.43,172.37,1.39456324]
[1748475661255,16.66279388,172.41,172.37,1.39456324]
[1748475661459,49.29536622,172.43,172.37,1.39456324]
[1748475661460,16.66279388,172.38,172.37,1.39456324]
[1748475661662,26.58279388,172.38,172.33,16.66279388]
[1748475661814,9.92,172.38,172.34,16.66279388]
[1748475662008,9.92,172.38,172.36,16.66279388]
[1748475662214,9.92,172.38,172.37,16.66279388]
[1748475662419,15.72113702,172.38,172.37,16.66279388]
[1748475663719,15.72113702,172.38,172.37,16.80495545]
[1748475663720,9.92,172.38,172.37,16.80495545]
[1748475663927,5.80077232,172.4,172.37,16.66279388]
[1748475664136,5.80077232,172.4,172.39,16.66279388]
[1748475664445,5.7997912,172.42,172.39,16.66279388]
[1748475664623,5.7997912,172.42,172.35,29.0147163]
[1748475664822,5.7997912,172.42,172.41,16.66279388]
[1748475666230,15.7195456,172.43,172.41,16.66279388]
[1748475666427,15.7195456,172.43,172.42,16.66279388]
[1748475672047,9.92,172.43,172.42,16.66279388]
[1748475672354,5.79910938,172.45,172.42,16.66279388]
[1748475672666,5.79910938,172.45,172.39,0.28432314]
[1748475672846,20.29606501,172.45,172.39,0.28432314]
[1748475673031,20.29606501,172.45,172.42,16.66279388]
[1748475673364,20.29606501,172.45,172.43,16.66279388]
[1748475673853,5.79910938,172.45,172.44,16.66279388]
[1748475674345,24.41495381,172.48,172.4,0.14216157]
[1748475674346,20.29338435,172.47,172.4,0.14216157]
[1748475674753,20.29338435,172.47,172.44,16.66279388]
[1748475675141,20.29338435,172.47,172.45,16.66279388]
[1748475675334,20.29338435,172.47,172.4,0.14216157]
[1748475675638,16.66279388,172.46,172.39,26.14216157]
[1748475675836,16.66279388,172.46,172.41,16.66279388]
[1748475676249,20.29573788,172.45,172.41,16.66279388]
[1748475676444,106.16279388,172.44,172.35,6.2655]
[1748475676748,16.66279388,172.43,172.35,6.2655]
[1748475676948,9.92,172.42,172.39,16.66279388]
[1748475677155,9.92,172.42,172.4,16.66279388]
[1748475677740,9.92,172.42,172.41,16.66279388]
[1748475678745,15.7197912,172.42,172.4,16.66279388]
[1748475679356,15.7197912,172.42,172.39,16.66279388]
[1748475679544,30.21926921,172.42,172.38,16.66279388]
[1748475680640,119.71926921,172.42,172.38,16.66279388]
[1748475681553,119.71926921,172.42,172.39,16.66279388]
[1748475682631,16.66279388,172.4,172.35,16.66279388]
[1748475683047,106.16279388,172.41,172.36,16.66279388]
[1748475683683,20.30162412,172.4,172.37,16.66279388]
[1748475684155,20.30162412,172.4,172.38,16.66279388]
[1748475685253,20.30162412,172.4,172.39,16.66279388]
[1748475685456,9.92,172.46,172.4,0.14216157]
[1748475685632,15.71844601,172.46,172.43,16.66279388]
[1748475685833,46.87787807,172.46,172.41,16.66279388]
[1748475686063,16.66279388,172.45,172.37,1.5724]
[1748475686652,16.66279388,172.45,172.4,16.66279388]
[1748475687065,75.87010815,172.46,172.37,1.5724]
[1748475687239,75.87010815,172.46,172.41,16.66279388]
[1748475687944,59.20731427,172.46,172.42,16.66279388]
[1748475688262,30.21508419,172.46,172.42,16.66279388]
[1748475689657,30.21508419,172.46,172.45,16.66279388]
[1748475689862,15.71844601,172.46,172.45,16.66279388]
[1748475692367,103.99116924,172.52,172.45,18.25369388]
[1748475692573,5.7967654,172.51,172.46,0.28432314]
[1748475692744,5.7967654,172.51,172.5,16.66279388]
[1748475693062,20.28867891,172.51,172.47,16.66279388]
[1748475693244,36.95147279,172.51,172.47,16.66279388]
[1748475693562,36.95147279,172.51,172.42,0.28432314]
[1748475693563,26.56279388,172.5,172.42,0.28432314]
[1748475693756,16.66279388,172.49,172.44,16.66279388]
[1748475694141,20.29220778,172.48,172.45,16.66279388]
[1748475695374,20.29220778,172.48,172.46,16.66279388]
[1748475696236,14.49443413,172.48,172.46,16.66279388]
[1748475696547,14.49443413,172.48,172.45,16.66279388]
[1748475697069,14.49443413,172.48,172.44,16.66279388]
[1748475697860,14.49443413,172.48,172.41,1.6148]
[1748475697861,31.15722801,172.48,172.41,1.6148]
[1748475698061,31.15722801,172.48,172.37,1.6074]
[1748475698062,16.66279388,172.44,172.37,1.6074]
[1748475698242,5.7997912,172.42,172.39,16.66279388]
[1748475698637,5.7997912,172.42,172.4,16.66279388]
[1748475699855,20.29926921,172.42,172.39,16.66279388]
[1748475701665,20.29926921,172.42,172.4,16.66279388]
[1748475702369,20.29926921,172.42,172.38,16.66279388]
[1748475702784,20.29926921,172.42,172.39,16.66279388]
[1748475706775,16.66279388,172.4,172.33,16.66279388]
[1748475706979,16.66279388,172.39,172.35,16.66279388]
[1748475707284,106.16279388,172.4,172.35,16.66279388]
[1748475707985,106.16279388,172.4,172.31,2.82704662]
[1748475707986,106.16279388,172.4,172.32,0.28432314]
[1748475708191,89.5,172.4,172.35,16.66279388]
[1748475708369,106.16279388,172.4,172.36,16.66279388]
[1748475708774,5.80080051,172.39,172.36,16.66279388]
[1748475710074,5.80080051,172.39,172.38,16.66279388]
[1748475710869,14.50195978,172.4,172.38,16.66279388]
[1748475711105,14.50195978,172.4,172.39,16.66279388]
[1748475711994,14.50195978,172.4,172.36,0.28432314]
[1748475712198,14.50195978,172.4,172.38,16.66279388]
[1748475712577,14.50195978,172.4,172.37,16.66279388]
[1748475712772,14.50195978,172.4,172.33,26.28432314]
[1748475712773,14.50195978,172.4,172.33,0.14216157]
[1748475712972,16.66279388,172.39,172.34,16.66279388]
[1748475713402,16.66279388,172.39,172.35,16.66279388]
[1748475715001,5.80113702,172.38,172.35,16.66279388]
[1748475718610,36.96677345,172.38,172.33,16.66279388]
[1748475718916,9.88,172.37,172.33,16.66279388]
[1748475719406,9.88,172.37,172.32,16.66279388]
[1748475719407,26.54279388,172.37,172.32,16.66279388]
[1748475719587,16.66279388,172.36,172.32,16.66279388]
[1748475719781,106.16279388,172.36,172.32,16.66279388]
[1748475719997,89.5,172.36,172.32,16.66279388]
[1748475720197,89.5,172.36,172.33,16.66279388]
[1748475720506,5.80214679,172.35,172.33,0.28432314]
[1748475720697,89.5,172.36,172.35,0.28432314]
[1748475720899,5.8001276,172.41,172.37,18.64964886]
[1748475721090,15.67989755,172.42,172.4,16.66279388]
[1748475721293,15.67989755,172.42,172.41,16.66279388]
[1748475722701,15.67810981,172.47,172.41,16.66279388]
[1748475722910,15.67810981,172.47,172.46,16.66279388]
[1748475723206,15.67810981,172.47,172.42,0.28432314]
[1748475723424,15.67810981,172.47,172.46,16.66279388]
[1748475723624,9.88,172.47,172.46,16.80495545]
[1748475724624,15.67810981,172.47,172.46,16.80495545]
[1748475725126,15.67810981,172.47,172.44,1.6361]
[1748475725412,15.67810981,172.47,172.46,16.66279388]
[1748475726195,30.17338435,172.47,172.4,1.6018]
[1748475726395,16.66279388,172.45,172.4,18.26459388]
[1748475726596,20.29691486,172.44,172.4,18.26459388]
[1748475726909,20.29691486,172.44,172.42,16.66279388]
[1748475727117,20.29691486,172.44,172.41,16.66279388]
[1748475728796,14.49779633,172.44,172.41,16.66279388]
[1748475730989,14.49779633,172.44,172.4,1.6018]
[1748475731189,14.49779633,172.44,172.41,16.66279388]
[1748475731725,14.49779633,172.44,172.42,16.66279388]
[1748475732215,14.49779633,172.44,172.43,16.66279388]
[1748475733222,14.49779633,172.44,172.42,16.66279388]
[1748475733518,14.49779633,172.44,172.41,16.66279388]
[1748475734021,16.66279388,172.42,172.38,16.66279388]
[1748475734221,106.16279388,172.43,172.38,16.66279388]
[1748475735087,20.29926921,172.42,172.38,16.66279388]
[1748475738403,36.96206309,172.42,172.38,16.66279388]
[1748475738599,46.84206309,172.42,172.38,16.66279388]
[1748475739218,36.964418,172.4,172.35,16.66279388]
[1748475739820,36.964418,172.4,172.36,16.66279388]
[1748475740915,36.964418,172.4,172.34,0.14216157]
[1748475741123,36.964418,172.4,172.36,16.66279388]
[1748475741500,20.30162412,172.4,172.36,16.66279388]
[1748475742318,36.964418,172.4,172.36,16.66279388]
[1748475742925,36.964418,172.4,172.34,0.14216157]
[1748475743131,36.964418,172.4,172.35,16.66279388]
[1748475743309,16.66279388,172.37,172.33,0.14216157]
[1748475743509,16.66279388,172.37,172.32,1.6252]
[1748475743711,16.66279388,172.37,172.32,18.28799388]
[1748475744413,20.30633557,172.36,172.32,18.28799388]
[1748475744925,20.30633557,172.36,172.33,16.66279388]
[1748475745436,5.80181016,172.36,172.35,16.66279388]
[1748475745732,5.80146621,172.38,172.36,0.28432314]
[1748475745939,24.37983248,172.42,172.38,0.28432314]
[1748475746115,24.37983248,172.42,172.41,16.66279388]
[1748475746116,30.17962368,172.42,172.41,16.66279388]
[1748475746323,15.6797912,172.42,172.41,16.66279388]
[1748475747142,9.88,172.42,172.41,16.80495545]
[1748475747841,15.6797912,172.42,172.41,16.80495545]
[1748475748133,15.6797912,172.42,172.35,0.98178953]
[1748475748339,16.66279388,172.41,172.36,16.66279388]
[1748475748510,5.80046403,172.4,172.35,0.98178953]
[1748475748712,5.80046403,172.4,172.36,16.66279388]
[1748475749014,5.80046403,172.4,172.37,16.66279388]
[1748475749612,14.50116009,172.4,172.37,16.66279388]
[1748475751546,14.50116009,172.4,172.38,16.66279388]
[1748475752039,14.50116009,172.4,172.37,16.66279388]
[1748475752635,5.8001276,172.41,172.39,16.66279388]
[1748475752829,5.8001276,172.41,172.4,16.66279388]
[1748475753429,5.8001276,172.41,172.39,16.66279388]
[1748475754339,5.8001276,172.41,172.4,16.66279388]
[1748475756736,5.8001276,172.41,172.4,16.80495545]
[1748475756931,5.8001276,172.41,172.4,16.66279388]
[1748475757248,5.8001276,172.41,172.4,16.80495545]
[1748475757548,15.67986005,172.42,172.41,0.14216157]
[1748475757742,15.67986005,172.42,172.41,16.66279388]
[1748475758314,9.88,172.42,172.41,16.94711702]
[1748475758961,24.35573163,172.47,172.42,0.28432314]
[1748475759117,24.35573163,172.47,172.46,16.66279388]
[1748475759752,30.15384144,172.47,172.46,16.66279388]
[1748475760257,5.7967654,172.51,172.46,16.80495545]
[1748475760431,5.7967654,172.51,172.5,16.66279388]
[1748475760835,5.79651035,172.52,172.5,16.66279388]
[1748475761042,5.79651035,172.52,172.51,16.66279388]
[1748475761220,10.57456531,172.53,172.51,16.66279388]
[1748475761569,10.57456531,172.53,172.52,16.66279388]
[1748475761722,10.57456531,172.53,172.52,17.64361597]
[1748475761925,10.57456531,172.53,172.52,16.76890534]
[1748475762157,10.57456531,172.53,172.49,0.14216157]
[1748475762316,10.57456531,172.53,172.52,16.66279388]
[1748475762521,10.57456531,172.53,172.48,0.14216157]
[1748475762721,10.57456531,172.53,172.52,16.66279388]
[1748475763027,10.57456531,172.53,172.47,27.5186]
[1748475763243,10.57456531,172.53,172.52,16.66279388]
[1748475763725,25.06479889,172.53,172.47,1.5186]
[1748475763929,61.68479889,172.53,172.5,24.62334384]
[1748475764849,61.68479889,172.53,172.51,24.62334384]
[1748475765241,61.68479889,172.53,172.46,0.14216157]
[1748475765416,61.68479889,172.53,172.49,24.62334384]
[1748475766449,24.62334384,172.5,172.42,1.5466]
[1748475766666,24.62334384,172.49,172.45,24.62334384]
[1748475766953,9.86,172.48,172.45,24.62334384]
[1748475767158,9.86,172.48,172.47,24.62334384]
[1748475768122,9.86,172.48,172.46,24.62334384]
[1748475768321,9.86,172.48,172.45,24.62334384]
[1748475768322,5.79810981,172.47,172.45,24.62334384]
[1748475768856,20.29338435,172.47,172.44,24.62334384]
[1748475769150,20.29338435,172.47,172.45,24.62334384]
[1748475769957,5.79810981,172.47,172.46,24.62334384]
[1748475770960,5.79810981,172.47,172.42,18.933972]
[1748475771253,5.79810981,172.47,172.46,24.62334384]
[1748475774535,9.86,172.48,172.46,26.23954384]
[1748475774738,9.86,172.48,172.47,24.62334384]
[1748475774947,15.65777365,172.48,172.47,24.62334384]
[1748475775638,15.65777365,172.48,172.44,0.14216157]
[1748475775838,15.65777365,172.48,172.45,24.62334384]
[1748475776272,30.15220778,172.48,172.45,24.62334384]
[1748475776436,30.15220778,172.48,172.46,24.62334384]
[1748475777144,30.15220778,172.48,172.47,24.62334384]
[1748475777145,15.65777365,172.48,172.47,24.62334384]
[1748475781319,15.65777365,172.48,172.41,24.44968268]
[1748475781320,15.65777365,172.48,172.41,24.62334384]
[1748475781456,61.22334384,172.47,172.42,24.62334384]
[1748475781782,36.6,172.47,172.44,24.62334384]
[1748475781952,36.6,172.47,172.46,24.62334384]
[1748475782873,42.39810981,172.47,172.46,24.62334384]
[1748475783182,42.39810981,172.47,172.45,24.62334384]
[1748475783986,56.89338435,172.47,172.38,26.0]
[1748475784155,24.62334384,172.46,172.41,24.62334384]
[1748475784976,20.29573788,172.45,172.41,24.62334384]
[1748475785878,20.29573788,172.45,172.42,24.62334384]
[1748475786179,20.29573788,172.45,172.44,16.63496028]
[1748475786587,20.29573788,172.45,172.43,16.63496028]
[1748475786955,5.79844601,172.46,172.44,16.63496028]
[1748475787186,5.79844601,172.46,172.45,16.63496028]
[1748475788900,5.79810981,172.47,172.45,16.63496028]
[1748475789106,5.79810981,172.47,172.46,16.63496028]
[1748475791173,5.79810981,172.47,172.41,26.0]
[1748475791373,5.79810981,172.47,172.46,16.63496028]
[1748475792896,5.79810981,172.47,172.35,26.63496028]
[1748475792897,36.92834463,172.47,172.37,7.8771]
[1748475793128,73.52834463,172.47,172.42,16.63496028]
[1748475793413,16.63496028,172.46,172.41,16.63496028]
[1748475794110,20.29573788,172.45,172.41,16.63496028]
[1748475794400,20.29573788,172.45,172.43,16.63496028]
[1748475794996,20.29573788,172.45,172.44,16.63496028]
[1748475796182,14.49695563,172.45,172.44,16.63496028]
[1748475796607,14.49695563,172.45,172.37,33.8771]
[1748475796608,14.49695563,172.45,172.43,16.63496028]
[1748475797528,14.49695563,172.45,172.42,16.63496028]
[1748475797689,14.49695563,172.45,172.43,16.63496028]
[1748475798604,14.49695563,172.45,172.42,16.63496028]
[1748475799013,14.49695563,172.45,172.41,16.63496028]
[1748475799391,31.13191591,172.45,172.41,16.63496028]
[1748475799601,14.49695563,172.45,172.42,16.63496028]
[1748475800014,14.49695563,172.45,172.41,16.63496028]
[1748475800387,14.49695563,172.45,172.37,7.8771]
[1748475800594,14.49695563,172.45,172.41,16.63496028]
[1748475801188,20.29573788,172.45,172.41,16.63496028]
[1748475801911,36.93069816,172.45,172.4,16.63496028]
[1748475802218,20.29573788,172.45,172.4,16.63496028]
[1748475802412,36.93069816,172.45,172.41,16.63496028]
[1748475803126,20.29573788,172.45,172.44,16.63496028]
[1748475803927,20.29573788,172.45,172.43,16.63496028]
[1748475805520,20.29573788,172.45,172.41,16.63496028]
[1748475805726,20.29573788,172.45,172.42,16.63496028]
[1748475806027,20.29573788,172.45,172.38,18.933972]
[1748475806227,20.29573788,172.45,172.43,16.63496028]
[1748475806408,20.29573788,172.45,172.42,16.63496028]
[1748475807728,14.49695563,172.45,172.42,16.63496028]
[1748475808238,14.49695563,172.45,172.44,16.63496028]
[1748475808412,5.79844601,172.46,172.44,16.63496028]
[1748475808611,5.79844601,172.46,172.45,16.63496028]
[1748475809316,20.29456105,172.46,172.43,16.63496028]
[1748475810531,26.0,172.45,172.41,16.63496028]
[1748475811045,16.63496028,172.44,172.39,16.63496028]
[1748475811637,26.0,172.45,172.4,16.63496028]
[1748475811638,42.63496028,172.45,172.4,16.63496028]
[1748475811949,42.63496028,172.45,172.37,1.5261]
[1748475811950,26.47496028,172.44,172.39,16.63496028]
[1748475812650,20.29809197,172.43,172.39,16.63496028]
[1748475813024,16.63496028,172.4,172.35,16.63496028]
[1748475814127,106.13496028,172.41,172.36,16.63496028]
[1748475814627,20.30162412,172.4,172.36,16.63496028]
[1748475815738,20.30162412,172.4,172.38,16.63496028]
[1748475816128,20.30162412,172.4,172.37,16.63496028]
[1748475816749,20.30162412,172.4,172.38,16.63496028]
[1748475817553,20.30162412,172.4,172.39,16.63496028]
[1748475818623,20.30162412,172.4,172.34,0.14216157]
[1748475818831,20.30162412,172.4,172.33,1.6242]
[1748475819041,20.30162412,172.4,172.36,16.63496028]
[1748475819236,16.63496028,172.39,172.3,6.1007]
[1748475819437,9.84,172.38,172.35,16.63496028]
[1748475819648,9.84,172.38,172.3,6.1007]
[1748475819649,9.84,172.38,172.36,16.63496028]
[1748475820059,9.84,172.38,172.37,16.63496028]
[1748475820641,9.84,172.38,172.37,16.77712185]
[1748475820935,5.80046403,172.4,172.37,16.77712185]
[1748475821139,5.80046403,172.4,172.39,16.63496028]
[1748475822161,5.7997912,172.42,172.39,16.63496028]
[1748475822465,5.7997912,172.42,172.36,8.05612314]
[1748475822466,5.7997912,172.42,172.41,16.63496028]
[1748475822683,9.84,172.43,172.41,16.63496028]
[1748475822971,9.84,172.43,172.42,16.63496028]
[1748475823146,15.63963467,172.43,172.42,16.63496028]
[1748475827979,15.63963467,172.43,172.37,18.933972]
[1748475828161,15.63963467,172.43,172.42,16.63496028]
[1748475828666,15.63963467,172.43,172.38,16.63496028]
[1748475828667,46.77323207,172.43,172.38,16.63496028]
[1748475829181,46.77323207,172.43,172.39,16.63496028]
[1748475830275,16.63496028,172.41,172.32,32.3646]
[1748475830474,16.63496028,172.41,172.37,16.63496028]
[1748475830663,16.63496028,172.41,172.36,16.63496028]
[1748475830874,20.30162412,172.4,172.36,16.63496028]
[1748475831078,20.30162412,172.4,172.35,16.63496028]
[1748475831361,20.30162412,172.4,172.32,6.3646]
[1748475831798,65.93890458,172.4,172.35,16.63496028]
[1748475831970,16.63496028,172.39,172.35,16.63496028]
[1748475832792,16.63496028,172.39,172.34,16.63496028]
[1748475833081,20.30397957,172.38,172.34,16.63496028]
[1748475833289,9.84,172.37,172.34,16.63496028]
[1748475835007,5.80181016,172.36,172.34,16.63496028]
[1748475835904,20.30633557,172.36,172.31,1.5167]
[1748475836072,65.95034667,172.36,172.28,6.1401]
[1748475836277,65.95034667,172.36,172.31,16.63496028]
[1748475836600,49.31538639,172.36,172.32,16.63496028]
[1748475837303,16.63496028,172.35,172.27,1.5479]
[1748475837472,53.25496028,172.34,172.29,16.63496028]
[1748475838496,16.63496028,172.33,172.28,16.63496028]
[1748475838702,36.62,172.34,172.26,16.63496028]
[1748475838703,16.63496028,172.31,172.26,16.63496028]
[1748475838905,9.84,172.3,172.26,16.63496028]
[1748475839103,15.64383052,172.3,172.29,16.63496028]
[1748475841303,15.64383052,172.3,172.25,0.14216157]
[1748475841504,15.64383052,172.3,172.29,16.63496028]
[1748475841814,15.64383052,172.3,172.28,16.63496028]
[1748475842107,15.64383052,172.3,172.26,16.63496028]
[1748475842471,15.64383052,172.3,172.23,1.5948]
[1748475842678,46.78836712,172.3,172.25,16.63496028]
[1748475842905,46.78836712,172.3,172.23,1.5948]
[1748475842906,16.63496028,172.29,172.24,16.63496028]
[1748475843107,30.15340684,172.3,172.26,16.63496028]
[1748475843285,30.15340684,172.3,172.27,16.63496028]
[1748475843488,30.15340684,172.3,172.23,1.5948]
[1748475843696,30.15340684,172.3,172.29,16.63496028]
[1748475846214,30.15340684,172.3,172.23,1.5948]
[1748475846393,30.15340684,172.3,172.27,16.63496028]
[1748475848190,30.15340684,172.3,172.28,16.63496028]
[1748475848585,59.17255948,172.3,172.21,2.94769944]
[1748475848886,59.17255948,172.3,172.28,16.63496028]
[1748475850550,59.17255948,172.3,172.27,16.63496028]
[1748475850717,89.5,172.29,172.25,16.63496028]
[1748475851733,106.13496028,172.29,172.24,16.63496028]
[1748475851933,88.19171212,172.3,172.24,16.63496028]
[1748475851934,106.13496028,172.28,172.24,16.63496028]
[1748475852136,36.62,172.27,172.24,16.63496028]
[1748475852309,5.80517821,172.26,172.24,16.63496028]
[1748475852738,5.80517821,172.26,172.18,1.5302]
[1748475852739,20.31812375,172.26,172.18,1.5302]
[1748475852934,20.31812375,172.26,172.24,16.63496028]
[1748475853517,20.31812375,172.26,172.25,16.63496028]
[1748475854538,14.51294554,172.26,172.25,16.63496028]
[1748475855529,14.51294554,172.26,172.18,4.61738295]
[1748475855838,14.51294554,172.26,172.25,16.63496028]
[1748475858137,104.01294554,172.26,172.24,16.63496028]
[1748475858464,104.01294554,172.26,172.18,1.5302]
[1748475858743,135.81930332,172.25,172.13,1.6145]
[1748475858916,135.81930332,172.25,172.21,16.63496028]
[1748475858917,26.0,172.22,172.21,16.63496028]
[1748475859738,36.62,172.23,172.21,16.63496028]
[1748475859923,36.62,172.23,172.22,16.63496028]
[1748475860260,99.36,172.24,172.22,16.63496028]
[1748475860417,99.36,172.24,172.23,16.63496028]
[1748475860613,105.16585229,172.24,172.23,16.63496028]
[1748475862843,119.68048303,172.24,172.23,16.63496028]
[1748475863714,145.68048303,172.24,172.23,16.63496028]
[1748475863916,145.68048303,172.24,172.22,16.63496028]
[1748475865867,145.68048303,172.24,172.23,16.63496028]
[1748475866359,119.68048303,172.24,172.23,16.63496028]
[1748475866563,15.66585229,172.24,172.23,16.63496028]
[1748475866949,24.37269679,172.27,172.23,33.26992056]
[1748475867151,24.37269679,172.27,172.26,33.26992056]
[1748475867943,24.37269679,172.27,172.26,24.68696403]
[1748475868337,30.17753802,172.27,172.26,24.68696403]
[1748475873452,15.66484123,172.27,172.26,24.68696403]
[1748475883766,30.17694432,172.27,172.26,24.68696403]
[1748475884665,119.67694432,172.27,172.26,24.68696403]
[1748475885364,148.7011505,172.27,172.25,24.68696403]
[1748475885672,20.31930332,172.25,172.2,24.68696403]
[1748475885875,20.31930332,172.25,172.24,24.68696403]
[1748475886075,20.31930332,172.25,172.23,24.68696403]
[1748475886693,20.31930332,172.25,172.24,24.68696403]
[1748475887508,135.81930332,172.25,172.23,24.68696403]
[1748475887909,135.81930332,172.25,172.23,16.6754098]
[1748475888891,89.5,172.24,172.23,16.6754098]
[1748475889315,26.0,172.21,172.17,1.6149]
[1748475889607,26.0,172.21,172.2,16.6754098]
[1748475890411,35.86,172.21,172.17,1.6149]
[1748475890599,9.86,172.21,172.2,16.6754098]
[1748475890799,15.66686371,172.21,172.2,16.6754098]
[1748475894916,5.80663921,172.22,172.2,16.6754098]
[1748475895220,136.0,172.24,172.21,16.6754098]
[1748475895418,46.5,172.24,172.23,16.6754098]
[1748475895625,9.86,172.24,172.23,16.6754098]
[1748475896219,15.66585229,172.24,172.23,16.6754098]
[1748475900147,9.86,172.24,172.23,16.6754098]
[1748475900351,15.66585229,172.24,172.18,5.80782607]
[1748475900616,15.66585229,172.24,172.23,16.6754098]
[1748475901656,30.18048303,172.24,172.18,18.64964886]
[1748475901943,30.18048303,172.24,172.23,16.6754098]
[1748475902631,15.66585229,172.24,172.23,16.6754098]
[1748475903329,9.86,172.24,172.23,16.6754098]
[1748475903543,9.86,172.24,172.23,35.32505866]
[1748475903826,5.80506198,172.27,172.24,18.64964886]
[1748475904009,5.80506198,172.27,172.26,33.3508196]
[1748475904316,5.80506198,172.27,172.26,16.6754098]
[1748475904518,20.31716507,172.27,172.24,16.6754098]
[1748475904704,36.64,172.26,172.24,16.6754098]
[1748475905617,5.80551523,172.25,172.24,16.6754098]
[1748475907731,20.31694432,172.27,172.24,16.6754098]
[1748475907937,20.31694432,172.27,172.26,16.6754098]
[1748475913247,20.31694432,172.27,172.18,18.64964886]
[1748475913553,20.31694432,172.27,172.24,16.6754098]
[1748475913857,20.31694432,172.27,172.25,16.6754098]
[1748475914359,9.84,172.26,172.25,16.6754098]
[1748475914551,9.84,172.26,172.24,16.6754098]
[1748475914874,9.84,172.26,172.17,24.8761098]
[1748475914875,20.31930332,172.25,172.22,16.6754098]
[1748475915178,20.31930332,172.25,172.17,24.8761098]
[1748475915179,46.31930332,172.25,172.17,1.6149]
[1748475915332,16.6754098,172.24,172.19,16.6754098]
[1748475915526,16.6754098,172.24,172.13,10.62366316]
[1748475915527,0.14216157,172.22,172.18,16.6754098]
[1748475915935,16.81757137,172.22,172.17,16.6754098]
[1748475916850,20.32402299,172.21,172.17,16.6754098]
[1748475917052,9.84,172.2,172.17,16.6754098]
[1748475917253,9.84,172.2,172.13,7.7532]
[1748475917451,9.84,172.2,172.17,16.6754098]
[1748475917656,106.31757137,172.19,172.15,16.6754098]
[1748475917971,36.62,172.18,172.15,16.6754098]
[1748475918336,36.62,172.18,172.16,16.6754098]
[1748475919065,5.80821281,172.17,172.16,16.6754098]
[1748475919564,20.32874484,172.17,172.16,16.6754098]
[1748475919741,20.32874484,172.17,172.1,26.0]
[1748475919742,20.32874484,172.17,172.09,8.0421]
[1748475920145,0.14216157,172.16,172.09,1.5551]
[1748475920660,0.14216157,172.16,172.12,16.6754098]
[1748475921238,16.6754098,172.13,172.06,0.38540947]
[1748475921454,9.86,172.12,172.08,16.6754098]
[1748475921650,46.56,172.12,172.09,16.6754098]
[1748475921848,46.56,172.12,172.1,16.6754098]
[1748475922777,46.56,172.12,172.07,0.38721166]
[1748475922778,46.56,172.12,172.11,16.6754098]
[1748475922953,46.56,172.12,172.1,16.6754098]
[1748475923355,46.56,172.12,172.09,16.6754098]
[1748475923356,20.33583172,172.11,172.09,16.6754098]
[1748475923863,20.33583172,172.11,172.06,0.38540947]
[1748475924058,20.33583172,172.11,172.09,16.6754098]
[1748475926360,20.33583172,172.11,172.1,16.6754098]
[1748475926544,20.33583172,172.11,172.06,0.38540947]
[1748475926737,20.33583172,172.11,172.09,16.6754098]
[1748475928243,20.33583172,172.11,172.06,0.38540947]
[1748475928558,20.33583172,172.11,172.09,16.6754098]
[1748475929969,20.33583172,172.11,172.08,16.6754098]
[1748475930167,20.33583172,172.11,172.05,1.5673]
[1748475930168,20.33583172,172.11,172.06,0.38540947]
[1748475930381,49.38701991,172.11,172.02,0.38693097]
[1748475930584,49.38701991,172.11,172.1,16.6754098]